Workbook

Sheet Raw
A1: type | B1: transl | C1: gene | D1: desc | E1: group | F1: start | G1: stop | H1: strand | I1: chr | J1: cM | K1: fw | L1: check1 | M1: rev | N1: check2 | O1: check3 | P1: fragment_length
A2: known | B2: 4AL_5AL | C2: TRIAE_CS42_5AL_TGACv1_375821_AA1227550.1:group17899:46367:51595 | D2: NADH-ubiquinone_oxidoreductase_B18_subunit,_Uncharacterized_protein | E2: group17899 | F2: 46367 | G2: 51595 | H2: - | I2: 5A | J2: 82.2857 | K2: GTTGATGTAGTAGTGCCTCTGTTAT | L2: PASS | M2: TGGCCACGATAACCTCACAA | N2: PASS | O2: =TRUE() -> 1 | P2: 78 | Q2: memo: since frag size is small, we need to ask to run 3% agarose gel, 50 bp ladder and additional no template control to distinguish primer-dimers from PCR product.
A3: known | B3: 4AL_5AL | C3: TRIAE_CS42_5AL_TGACv1_375102_AA1216090.1:group17588:72632:76155 | D3: UDP-galactose_transporter_2 | E3: group17588 | F3: 72632 | G3: 76155 | H3: - | I3: 5A | J3: 94.846 | K3: GATGGAGATGATCACAGATGGATTA | L3: PASS | M3: ACGGAGACCTAAGGCAAAAGG | N3: PASS | O3: =TRUE() -> 1 | P3: 57
A4: known | B4: 7BS_4AL | C4: TRIAE_CS42_4AL_TGACv1_288159_AA0938900.2:group1175:29540:34615 | D4: WRKY_transcription_factor_73 | E4: group1175 | F4: 29540 | G4: 34615 | H4: - | I4: 4A | J4: 111.1788 | K4: ACAACCACGTTTGCTATTAGCT | L4: PASS | M4: TCACACCCTAAATACGCCCA | N4: PASS | O4: =TRUE() -> 1 | P4: 58
A5: novel | B5: 5BL_4BS | C5: TRIAE_CS42_4BS_TGACv1_328754_AA1093140.1:group17187:56413:57306 | D5: Acetyltransferase,_GNAT_family_protein,_expressed,_protein,_Putative_acetyltransferase | E5: group17187 | F5: 56413 | G5: 57306 | H5: - | I5: 4B | J5: 50.376 | K5: GGATACCATGTGCAATGTACGTAG | L5: PASS | M5: GGATCGGAGAAAGGGAGTAGT | N5: PASS | O5: =TRUE() -> 1 | P5: 101
A6: novel | B6: 7AL_3AL | C6: TRIAE_CS42_3AL_TGACv1_193998_AA0624240.1:group12953:15776:19955 | D6: Pre-mRNA-splicing_factor_SLU7 | E6: group12953 | F6: 15776 | G6: 19955 | H6: - | I6: 3A | J6: 70.7247 | K6: CGATAATGCTCGTATGCGGAATTAT | L6: PASS | M6: ACTCTCATATTCCCACCCACA | N6: PASS | O6: =TRUE() -> 1 | P6: 67
A7: known | B7: 4AL_5AL | C7: TRIAE_CS42_5AL_TGACv1_373985_AA1186550.1:group16803:245897:251356 | D7: Expressed_protein,_protein,_cDNA_clone:J013169H09,_full_insert_sequence | E7: group16803 | F7: 245897 | G7: 251356 | H7: - | I7: 5A | J7: 94.846 | K7: TTGAAAGGTCCGTCATGCAC | L7: PASS | M7: AGAACGAGAACCGGAAACAT | N7: PASS | O7: =TRUE() -> 1 | P7: 118
A8: known | B8: 5AL_4AL | C8: TRIAE_CS42_4AL_TGACv1_288492_AA0950070.1:group3295:35327:36995 | D8: F-box_domain_containing_protein | E8: group3295 | F8: 35327 | G8: 36995 | H8: - | I8: 4A | J8: 76.49516667 | K8: AGAATATGTTTTAACACGGTACAGC | L8: PASS | M8: CCCCCTCTATCACACACAACC | N8: PASS | O8: =TRUE() -> 1 | P8: 89
A9: known | B9: 7BS_4AL | C9: TRIAE_CS42_4AL_TGACv1_288446_AA0948840.1:group6850:140646:145980 | D9: Alpha/beta-hydrolase_superfamily_protein,_Uncharacterized_protein | E9: group6850 | F9: 140646 | G9: 145980 | H9: plus | I9: 4A | J9: 111.1788 | K9: CGAGGCTTTTGTAAGAGCGAAC | L9: PASS | M9: CTCCCACCGCGCTTAAATG | N9: PASS | O9: =TRUE() -> 1 | P9: 69
A10: novel | B10: 5AL_7BS | C10: TRIAE_CS42_7BS_TGACv1_592267_AA1934680.2:group7391:27286:32606 | D10: Chloroplast_thylakoid_membrane,_putative_isoform_1 | E10: group7391 | F10: 27286 | G10: 32606 | H10: + | I10: 7B | J10: 1.136333333 | K10: GTAGTACTCCACAACACACGG | L10: PASS | M10: TTTGTTGAGGAAGGAGGCCC | N10: PASS | O10: =TRUE() -> 1 | P10: 50

Sheet gDNA Qubit
A1: gDNA | B1: Conc (ng/µl) | C1: V for 30uL at 2ng/ul | D1: H2O
A2: N1A-T1D | B2: 3.8 | C2: =2*30/B2 -> 15.78947368 | D2: =30-C2 -> 14.21052632
A3: N1D-T1A | B3: 4.04 | C3: =2*30/B3 -> 14.85148515 | D3: =30-C3 -> 15.14851485
A4: N2A-T2D | B4: 9.38 | C4: =2*30/B4 -> 6.396588486 | D4: =30-C4 -> 23.60341151
A5: N6D-T6A | B5: 5.78 | C5: =2*30/B5 -> 10.38062284 | D5: =30-C5 -> 19.61937716
A6: N1B-T1A | B6: 4.18 | C6: =2*30/B6 -> 14.35406699 | D6: =30-C6 -> 15.64593301
A7: N1D-T1B | B7: 10.4 | C7: =2*30/B7 -> 5.769230769 | D7: =30-C7 -> 24.23076923
A8: N2D-T2A | B8: 3.44 | C8: =2*30/B8 -> 17.44186047 | D8: =30-C8 -> 12.55813953
A9: N5D-T5A | B9: 16.3 | C9: =2*30/B9 -> 3.680981595 | D9: =30-C9 -> 26.3190184
C10: V for 30uL at 2ng/ul | D10: V for 180uL at 2ng/ul | E10: H20
A11: CS42 | B11: 85.8 | C11: =2*30/B11 -> 0.6993006993 | D11: =2*180/B11 -> 4.195804196 | E11: =180-D11 -> 175.8041958
A12: CS42 1:10

Sheet Primer-test
A1: sample | B1: transl | C1: chr | D1: fw | E1: rev | F1: fw len | G1: rev len | H1: fw + rev | I1: insert_length | J1: fragment_length | K1: 20160902_CS42 | L1: 20160902_H2O | M1: 20160905_HS-TapeStation_size
A2: 1 | B2: 4AL_5AL | C2: 5A | D2: GTTGATGTAGTAGTGCCTCTGTTAT | E2: TGGCCACGATAACCTCACAA | F2: =LEN(D2) -> 25 | G2: =LEN(E2) -> 20 | H2: =F2+G2 -> 45 | I2: =J2-H2 -> 33 | J2: 78 | K2: +? | L2: PD | M2: 83
A3: 2 | B3: 4AL_5AL | C3: 5A | D3: GATGGAGATGATCACAGATGGATTA | E3: ACGGAGACCTAAGGCAAAAGG | F3: =LEN(D3) -> 25 | G3: =LEN(E3) -> 21 | H3: =F3+G3 -> 46 | I3: =J3-H3 -> 11 | J3: 57 | K3: + | L3: -
A4: 3 | B4: 7BS_4AL | C4: 4A | D4: ACAACCACGTTTGCTATTAGCT | E4: TCACACCCTAAATACGCCCA | F4: =LEN(D4) -> 22 | G4: =LEN(E4) -> 20 | H4: =F4+G4 -> 42 | I4: =J4-H4 -> 16 | J4: 58 | K4: + | L4: -
A5: 4 | B5: 5BL_4BS | C5: 4B | D5: GGATACCATGTGCAATGTACGTAG | E5: GGATCGGAGAAAGGGAGTAGT | F5: =LEN(D5) -> 24 | G5: =LEN(E5) -> 21 | H5: =F5+G5 -> 45 | I5: =J5-H5 -> 56 | J5: 101 | K5: NS | L5: - | M5: 117
A6: 5 | B6: 7AL_3AL | C6: 3A | D6: CGATAATGCTCGTATGCGGAATTAT | E6: ACTCTCATATTCCCACCCACA | F6: =LEN(D6) -> 25 | G6: =LEN(E6) -> 21 | H6: =F6+G6 -> 46 | I6: =J6-H6 -> 21 | J6: 67 | K6: - | L6: PD?
A7: 6 | B7: 4AL_5AL | C7: 5A | D7: TTGAAAGGTCCGTCATGCAC | E7: AGAACGAGAACCGGAAACAT | F7: =LEN(D7) -> 20 | G7: =LEN(E7) -> 20 | H7: =F7+G7 -> 40 | I7: =J7-H7 -> 78 | J7: 118 | K7: NS | L7: - | M7: 131?
A8: 7 | B8: 5AL_4AL | C8: 4A | D8: AGAATATGTTTTAACACGGTACAGC | E8: CCCCCTCTATCACACACAACC | F8: =LEN(D8) -> 25 | G8: =LEN(E8) -> 21 | H8: =F8+G8 -> 46 | I8: =J8-H8 -> 43 | J8: 89 | K8: NS | L8: PD | M8: 95
A9: 8 | B9: 7BS_4AL | C9: 4A | D9: CGAGGCTTTTGTAAGAGCGAAC | E9: CTCCCACCGCGCTTAAATG | F9: =LEN(D9) -> 22 | G9: =LEN(E9) -> 19 | H9: =F9+G9 -> 41 | I9: =J9-H9 -> 28 | J9: 69 | K9: + | L9: PD | M9: 75
A10: 9 | B10: 5AL_7BS | C10: 7B | D10: GTAGTACTCCACAACACACGG | E10: TTTGTTGAGGAAGGAGGCCC | F10: =LEN(D10) -> 21 | G10: =LEN(E10) -> 20 | H10: =F10+G10 -> 41 | I10: =J10-H10 -> 9 | J10: 50 | K10: NS | L10: PD | M10: 61?
K13: CS42 | L13: H20
J14: No. of + | K14: =COUNTIF(K$2:K$10," +") -> 3 | L14: =COUNTIF(L$2:L$10," +") -> 0
J15: No. of +? | K15: =COUNTIF(K$2:K$10," +?") -> 1 | L15: =COUNTIF(L$2:L$10," +?") -> 0
J16: No. of - | K16: =COUNTIF(K$2:K$10," -") -> 1 | L16: =COUNTIF(L$2:L$10," -") -> 4
J17: No. of NS | K17: =COUNTIF(K$2:K$10,"NS") -> 4 | L17: =COUNTIF(L$2:L$10,"NS") -> 0
J18: No. of PD | K18: =COUNTIF(K$2:K$10,"PD") -> 0 | L18: =COUNTIF(L$2:L$10,"PD") -> 4
J19: No. of PD? | K19: =COUNTIF(K$2:K$10,"PD?") -> 0 | L19: =COUNTIF(L$2:L$10,"PD?") -> 1
J20: Total | K20: =SUM(K14:K19) -> 9 | L20: =SUM(L14:L19) -> 9

Sheet Test PCR
C1: 18 | D1: 18
B2: 1x | C2: x (with DNA) | D2: x (without DNA) | G2: 95°C | H2: 03:00:00
A3: Nuclease free water qsp 25uL | B3: =B10-SUM(B4:B9) -> 11.78 | C3: =B3*$C$1 -> 212.04 | D3: =B3*$D$1+C8 -> 214.2 | G3: 95°C | H3: 00:15:00 | I3: 10 cycles
A4: 5X GC buffer (with MgCl2) | B4: 5 | C4: =B4*$C$1 -> 90 | D4: =B4*$D$1 -> 90 | G4: 55°C | H4: 00:30:00
A5: Betaine 5M (1M final) | B5: 5 | C5: =B5*$C$1 -> 90 | D5: =B5*$D$1 -> 90 | G5: 72°C | H5: 00:10:00
A6: dNTPs | B6: 0.5 | C6: =B6*$C$1 -> 9 | D6: =B6*$D$1 -> 9 | G6: 95°C | H6: 00:15:00 | I6: 20 cycles
A7: Mix For+Rev primer 5uM each | B7: 2.5 | C7: - | D7: - | G7: 50°C | H7: 00:30:00
A8: CS42 DNA 10ng | B8: 0.12 | C8: =B8*$C$1 -> 2.16 | D8: - | G8: 72°C | H8: 00:10:00
A9: Kapa 2G robust polymerase | B9: 0.1 | C9: =B9*$C$1 -> 1.8 | D9: =B9*$D$1 -> 1.8 | G9: 72°C | H9: 01:00:00
B10: 25 | G10: 10°C | H10: hold
B11: =SUM(B3:B9) -> 25
B13: 1x | C13: x (with DNA) | D13: x (without DNA)
A14: Nuclease free water qsp 25uL | B14: =B20-SUM(B15:B19) -> 16.78 | C14: =B14*$C$1 -> 302.04 | D14: =B14*$D$1+C18 -> 304.2
A15: 5X GC buffer (with MgCl2) | B15: 5 | C15: =B15*$C$1 -> 90 | D15: =B15*$D$1 -> 90
A16: dNTPs | B16: 0.5 | C16: =B16*$C$1 -> 9 | D16: =B16*$D$1 -> 9
A17: Mix For+Rev primer 5uM each | B17: 2.5 | C17: -
A18: CS42 DNA 10ng | B18: 0.12 | C18: =B18*$C$1 -> 2.16
A19: Kapa 2G robust polymerase | B19: 0.1 | C19: =B19*$C$1 -> 1.8 | D19: =B19*$D$1 -> 1.8
B20: 25
B21: =SUM(B14:B19) -> 25
B24: 1x | G24: 95°C | H24: 03:00:00
A25: Nuclease free water qsp 25uL | B25: =B11-SUM(B26:B30) -> 11.9 | G25: 95°C | H25: 00:15:00 | I25: 10 cycles ramp -1C/cycle until 50C
A26: 5X GC buffer (with MgCl2) | B26: 5 | G26: 60°C | H26: 00:15:00
A27: dNTPs | B27: 0.5 | G27: 72°C | H27: 00:15:00
A28: Mix For+Rev primer 5uM each | B28: 2.5 | G28: 95°C | H28: 00:15:00 | I28: 20 cycles
A29: CS42 DNA 2ng/uL | B29: 5 | G29: 50°C | H29: 00:15:00
A30: Kapa 2G robust polymerase | B30: 0.1 | G30: 72°C | H30: 00:15:00
G31: 72°C | H31: 05:00:00
G32: 10°C | H32: hold
B35: 1x | C35: 35
A36: Nuclease free water qsp 25uL | B36: 9.875 | C36: =B36*$C$35 -> 345.625 | D36: =B36*2.2 -> 21.725
A37: 5X GC buffer | B37: 5 | C37: =B37*$C$35 -> 175
A38: MgCl2 | B38: 2 | C38: =B38*$C$35 -> 70
A39: dNTPs 10mM, freshly prepared | B39: 0.5 | C39: =B39*$C$35 -> 17.5
A40: Forward primer 10uM | B40: 1.25
A41: Reverse primer 10uM | B41: 1.25
A42: DNA | B42: 5
A43: HotStart GoTaq 5U/uL | B43: 0.125 | C43: =B43*$C$35 -> 4.375
B44: 25uL

Sheet Exp PCR
H1: CS42 DNA (ng/uL) | I1: 85.8
C2: PPMM | D2: SMM
B3: 1x | C3: 6x (with DNA) | D3: 61x
A4: Nuclease free water qsp 25uL | B4: =B10-SUM(B5:B9) -> 11.9 | C4: =B4*6 -> 71.4 | D4: =B4*61 -> 725.9 | G4: PP= Primer pair
A5: 5X GC buffer (with MgCl2) | B5: 5 | C5: =B5*6 -> 30 | D5: =B5*61 -> 305
A6: dNTPs | B6: 0.5 | C6: =B6*6 -> 3 | D6: =B6*61 -> 30.5 | G6: PP1 | H6: PP2 | I6: PP3 | J6: PP4
A7: Mix For+Rev primer 5uM each | B7: 2.5 | C7: =B7*6 -> 15 | G7: PP5 | H7: PP6 | I7: PP7 | J7: PP8
A8: DNA | B8: 5 | G8: PP9 | H8: PP10 | I8: PP11 | J8: PP12
A9: Kapa 2G robust polymerase | B9: 0.1 | C9: =B9*6 -> 0.6 | D9: =B9*61 -> 6.1 | G9: PP13 | H9: PP14
B10: 25
B11: =SUM(B4:B9) -> 25 | G11: PP16 | H11: PP17 | I11: PP18 | J11: PP19
G12: PP20 | H12: PP21 | I12: PP22 | J12: PP23
C13: =C4+C5+C9+C6 -> 105 | D13: =SUM(D4:D10) -> 1067.5 | G13: PP24 | H13: PP25 | I13: PP26 | J13: PP27
B14: =B10-B8 -> 20 | C14: =B14*6 -> 120

Sheet Experiment2016-09-09
H1: touch-down PCR scores 09.09.2016
A2: gDNA | C2: Primer pair (PP) | D2: transl | E2: group | F2: gDNA-dep | G2: gDNA-arr | H2: CS42 10ng | I2: CS42 1ng | J2: Nulli-dep 10ng | K2: Nulli-arr 10ng | L2: H20 | M2: option B when extra | N2: Note
A3: N1A-T1D | C3: 1 | D3: 4AL_5AL | E3: group17899 | F3: N4A-T4D | G3: N5A-T5B | H3: + | I3: + | J3: + | K3: + | L3: +
A4: N1D-T1A | C4: 2 | D4: 4AL_5AL | E4: group17588 | F4: N4A-T4D | G4: N5A-T5B | H4: + | I4: - | J4: + | K4: - | L4: -
A5: N2A-T2D | C5: 3 | D5: 7BS_4AL | E5: group1175 | F5: N7B-T7A | G5: N4A-T4D | H5: ++ | I5: + | J5: ++ | K5: - | L5: -
A6: N6A-T6D | C6: 4 | D6: 5BL_4BS | E6: group17187 | F6: N5B-T5D | G6: N4B-T4A | H6: ++ | I6: + | J6: ++ | K6: - | L6: - | N6: lower unspecific band
A7: N7B-T7A | C7: 5 | D7: 7AL_3AL | E7: group12953 | F7: N7A-T7D | G7: N3A-T3D | H7: ++? | I7: ++? | J7: ++? | K7: ++? | L7: ++? | N7: contamination?
A8: N1B-T1A | C8: 6 | D8: 4AL_5AL | E8: group16803 | F8: N4A-T4D | G8: N5A-T5B | H8: ++ | I8: + | J8: ++ | K8: - | L8: - | N8: several extra bands
A9: N1D-T1B | C9: 7 | D9: 5AL_4AL | E9: group3295 | F9: N5A-T5B | G9: N4A-T4D | H9: + | I9: PD? | J9: + | K9: PD? | L9: PD? | N9: several extra bands
A10: N2B-T2A | C10: 8 | D10: 7BS_4AL | E10: group6850 | F10: N7B-T7A | G10: N4A-T4D | H10: ++ | I10: + | J10: ++ | K10: ++ | L10: -
A11: N5D-T5A | C11: 9 | D11: 5AL_7BS | E11: group7391 | F11: N5A-T5B | G11: N7B-T7A | H11: ++ | I11: ++ | J11: ++ | K11: ++ | L11: ++
A12: N7D-T7B

Sheet Experiment2016-09-19
F1: PCR scores 19.09.2016
A2: Primer pair (PP) | B2: transl | C2: group | D2: gDNA-dep | E2: gDNA-arr | F2: CS42 10ng | G2: CS42 1ng | H2: Nulli-dep 10ng | I2: Nulli-arr 10ng | J2: H20
A3: 1 | B3: 4AL_5AL | C3: group17899 | D3: N4A-T4D | E3: N5A-T5B | F3: ++ | G3: + | H3: ++ | I3: - | J3: -
A4: 2 | B4: 4AL_5AL | C4: group17588 | D4: N4A-T4D | E4: N5A-T5B | F4: ++ | G4: + | H4: ++ | I4: - | J4: -
A5: 3 | B5: 7BS_4AL | C5: group1175 | D5: N7B-T7A | E5: N4A-T4D | F5: ++ | G5: + | H5: ++ | I5: - | J5: -
A6: 4 | B6: 5BL_4BS | C6: group17187 | D6: N5B-T5D | E6: N4B-T4A | F6: + | G6: - | H6: + | I6: - | J6: -
A7: 5 | B7: 7AL_3AL | C7: group12953 | D7: N7A-T7D | E7: N3A-T3D | F7: + | G7: ? | H7: - | I7: + | J7: -
A8: 6 | B8: 4AL_5AL | C8: group16803 | D8: N4A-T4D | E8: N5A-T5B | F8: ++ | G8: + | H8: ++ | I8: ? | J8: -
A9: 7 | B9: 5AL_4AL | C9: group3295 | D9: N5A-T5B | E9: N4A-T4D | F9: ++ | G9: + | H9: ++ | I9: + | J9: -
A10: 8 | B10: 7BS_4AL | C10: group6850 | D10: N7B-T7A | E10: N4A-T4D | F10: ++ | G10: + | H10: ++ | I10: ++ | J10: -
A11: 9 | B11: 5AL_7BS | C11: group7391 | D11: N5A-T5B | E11: N7B-T7A

Sheet ScoreTable2016-09-23
A1: Primer pair (PP) | B1: transl | C1: group | D1: chr | E1: cM | F1: fragment_length | G1: gDNA-dep | H1: gDNA-arr | I1: PCR date | J1: Annealing temperature | K1: Gel number | L1: CS42 10ng | M1: CS42 1ng | N1: Nulli-dep 10ng | O1: Nulli-arr 10ng | P1: H20 | Q1: Translocation
A2: 1 | B2: 4AL_5AL | C2: group17899 | D2: 5A | E2: 82.2857 | F2: 78 | G2: N4A-T4D | H2: N5A-T5B | I2: 19.09.2016 | J2: 55 | K2: 1 | L2: ++ | M2: + | N2: ++ | O2: - | P2: - | Q2: =TRUE() -> 1
A3: 2 | B3: 4AL_5AL | C3: group17588 | D3: 5A | E3: 94.846 | F3: 57 | G3: N4A-T4D | H3: N5A-T5B | I3: 19.09.2016 | J3: 55 | K3: 1 | L3: ++ | M3: + | N3: ++ | O3: - | P3: - | Q3: =TRUE() -> 1
A4: 3 | B4: 7BS_4AL | C4: group1175 | D4: 4A | E4: 111.1788 | F4: 58 | G4: N7B-T7A | H4: N4A-T4D | I4: 19.09.2016 | J4: 55 | K4: 1 | L4: ++ | M4: + | N4: ++ | O4: - | P4: - | Q4: =TRUE() -> 1
A5: 4 | B5: 5BL_4BS | C5: group17187 | D5: 4B | E5: 50.376 | F5: 101 | G5: N5B-T5D | H5: N4B-T4A | I5: 20.09.2016 | J5: 55 | K5: 2 | L5: + | M5: - | N5: + | O5: - | P5: - | Q5: =TRUE() -> 1
A6: 5 | B6: 7AL_3AL | C6: group12953 | D6: 3A | E6: 70.7247 | F6: 67 | G6: N7A-T7D | H6: N3A-T3D | I6: 20.09.2016 | J6: 55 | K6: 2 | L6: ++ | M6: + | N6: - | O6: + | P6: - | Q6: =FALSE() -> 0
A7: 6 | B7: 5AL_4AL | C7: group3295 | D7: 4A | E7: 76.49516667 | F7: 89 | G7: N5A-T5B | H7: N4A-T4D | I7: 21.09.2016 | J7: 60 | K7: 3 | L7: ++ | M7: + | N7: ++ | O7: - | P7: - | Q7: =TRUE() -> 1
A8: 7 | B8: 5AL_7BS | C8: group7391 | D8: 7B | E8: 1.136333333 | F8: 50 | G8: N5A-T5B | H8: N7B-T7A | I8: 22.09.2016 | J8: 60 | K8: 3 | L8: + | M8: - | N8: + | O8: - | P8: - | Q8: =TRUE() -> 1
A9: 8 | B9: 4AL_5AL | C9: group16803 | D9: 5A | E9: 94.846 | F9: 118 | G9: N4A-T4D | H9: N5A-T5B | I9: 23.09.2019 | J9: 60 | K9: 4 | L9: ++ | M9: + | N9: ++ | O9: - | P9: - | Q9: =TRUE() -> 1
A10: 9 | B10: 7BS_4AL | C10: group6850 | D10: 4A | E10: 111.1788 | F10: 69 | G10: N7B-T7A | H10: N4A-T4D | I10: 22.09.2016 | J10: 60 | K10: 4 | L10: + | M10: - | N10: ++ | O10: ? slightly higher band | P10: - | Q10: ? | R10: maybe false, slightly higher band with Nulli-arr
Q13: ? | R13: 1
Q14: =FALSE() -> 0 | R14: 1
Q15: =TRUE() -> 1 | R15: 7
Q16: TOTAL | R16: 9
R18: =R15/R16 -> 0.7777777778
